bitfinex/quotes_SOLUSD_20240622
["timestamp","ask_amount","ask_price","bid_price","bid_amount"]
[1719016035133,0.34,134.04,133.94,18.6637]
[1719016035333,7.4613,134.03,133.98,7.4636]
[1719016035535,0.34,134.04,133.94,18.6637]
[1719016035750,0.34,134.04,133.92,46.7476]
[1719016035924,7.4637,133.99,133.94,7.4657]
[1719016036122,0.34,134.0,133.9,23.0072401]
[1719016036426,28.25,134.04,133.9,23.0072401]
[1719016036427,18.8282,133.99,133.9,23.0072401]
[1719016036619,18.8282,133.99,133.92,7.4671]
[1719016036620,0.17,133.98,133.92,7.4671]
[1719016036939,0.34,133.98,133.92,7.4671]
[1719016037325,26.7199,133.98,133.9,0.8798401]
[1719016037526,7.466,133.94,133.9,0.8798401]
[1719016037834,7.465,133.96,133.9,0.8798401]
[1719016038147,0.34,133.95,133.9,0.8798401]
[1719016038351,0.34,133.95,133.91,7.4676]
[1719016038541,7.8055,133.95,133.9,8.3479401]
[1719016038742,7.8055,133.95,133.9,0.8798401]
[1719016038944,7.4662,133.94,133.9,0.8798401]
[1719016039138,7.4665,133.93,133.9,0.8798401]
[1719016040045,7.4673,133.92,133.9,0.8798401]
[1719016040252,0.34,133.91,133.9,0.8798401]
[1719016040754,46.7426,133.96,133.9,0.8798401]
[1719016040951,0.17,133.95,133.9,0.8798401]
[1719016041249,7.467,133.93,133.9,0.8798401]
[1719016041430,0.34,133.92,133.9,0.8798401]
[1719016041827,0.34,133.92,133.82,43.9969]
[1719016041828,22.6818,133.91,133.84,7.4713]
[1719016042028,0.34,133.9,133.84,7.4713]
[1719016042354,0.34,133.9,133.85,7.471]
[1719016042554,7.8085,133.9,133.84,7.4714]
[1719016043032,7.4688,133.89,133.84,7.4714]
[1719016043235,0.34,133.88,133.84,7.4714]
[1719016043652,0.34,133.88,133.74,6.2122]
[1719016043954,7.4718,133.84,133.79,6.9742]
[1719016044160,7.4728,133.82,133.77,7.4754]
[1719016044330,0.34,133.83,133.74,18.6916]
[1719016044658,7.6423,133.83,133.77,7.475]
[1719016044834,46.7565,133.86,133.81,7.4731]
[1719016044835,7.4705,133.86,133.81,7.4731]
[1719016045030,6.1323,133.95,133.81,21.6802]
[1719016045338,6.1323,133.95,133.85,7.4706]
[1719016045339,7.4686,133.9,133.85,7.4706]
[1719016045728,18.6651,133.94,133.82,18.6805]
[1719016045935,6.1323,133.95,133.81,59.0451]
[1719016046130,6.1323,133.95,133.82,0.34]
[1719016046361,6.1323,133.95,133.81,21.6802]
[1719016046528,6.1323,133.95,133.82,0.34]
[1719016046730,7.4674,133.92,133.87,7.4696]
[1719016046946,7.4673,133.92,133.87,7.4696]
[1719016047130,7.4677,133.91,133.86,7.4703]
[1719016047454,7.4687,133.9,133.85,7.4705]
[1719016047658,7.4678,133.91,133.86,7.4701]
[1719016047841,18.6651,133.94,133.81,21.6802]
[1719016048039,7.4674,133.92,133.87,7.4698]
[1719016048553,7.4682,133.9,133.86,7.4703]
[1719016048860,7.4677,133.91,133.86,7.47]
[1719016049162,7.4687,133.9,133.85,7.4709]
[1719016049364,0.17,133.91,133.85,7.4709]
[1719016049732,7.4688,133.89,133.84,7.4714]
[1719016050154,7.4684,133.9,133.85,7.4708]
[1719016050552,7.4679,133.91,133.86,7.4703]
[1719016050749,7.4667,133.93,133.85,18.6774]
[1719016051066,7.466,133.94,133.85,18.6774]
[1719016051266,7.466,133.94,133.89,7.4684]
[1719016051560,7.466,133.94,133.84,0.34]
[1719016051561,7.4669,133.93,133.86,18.6751]
[1719016052065,6.1323,133.95,133.87,7.4698]
[1719016052066,7.4676,133.92,133.87,7.4698]
[1719016052544,6.1323,133.95,133.83,18.6791]
[1719016052737,18.6667,133.93,133.86,7.4703]
[1719016052940,7.4682,133.9,133.85,7.4707]
[1719016053939,7.4662,133.94,133.89,7.4685]
[1719016054139,6.3023,133.95,133.89,18.6708]
[1719016054334,6.1323,134.0,133.87,22.38]
[1719016054540,6.1323,134.0,133.92,7.4669]
[1719016054757,6.1323,134.0,133.9,18.6694]
[1719016054957,6.1323,134.0,133.9,22.38]
[1719016055138,13.5953,134.0,133.95,7.4651]
[1719016055340,46.7328,134.03,133.92,22.38]
[1719016055341,6.1323,134.03,133.92,22.38]
[1719016055541,13.5935,134.03,133.98,7.4637]
[1719016055741,7.4606,134.04,133.99,7.4631]
[1719016056264,7.4606,134.04,133.95,18.6623]
[1719016056265,34.2444,134.06,133.95,18.6623]
[1719016056462,7.4621,134.01,133.96,7.4645]
[1719016057064,18.6511,134.04,133.94,21.6802]
[1719016057362,7.4626,134.01,133.96,7.4648]
[1719016057536,7.4628,134.0,133.95,7.4653]
[1719016057969,7.4632,133.99,133.94,7.4658]
[1719016058260,18.6544,134.02,133.95,7.4654]
[1719016058461,0.34,134.01,133.91,18.669]
[1719016058668,7.4641,133.98,133.93,7.4665]
[1719016059163,7.4644,133.97,133.92,7.4669]
[1719016059465,7.465,133.96,133.91,7.4675]
[1719016059657,7.4644,133.97,133.92,7.4669]
[1719016060040,15.0787,133.98,133.88,18.6733]
[1719016060253,15.0787,133.98,133.93,7.4665]
[1719016060466,15.0787,133.98,133.94,7.466]
[1719016060661,15.0787,133.98,133.9,18.6705]
[1719016060662,13.5952,134.0,133.9,22.38]
[1719016060838,6.1323,134.0,133.96,7.4648]
[1719016061039,13.595,134.0,133.95,7.4652]
[1719016062663,6.1323,134.0,133.92,18.6666]
[1719016063064,7.4635,133.99,133.94,7.4657]
[1719016063464,6.1323,134.0,133.9,18.6705]
[1719016063769,7.4647,133.97,133.92,7.4669]
[1719016063970,0.17,133.99,133.9,41.0505]
[1719016064140,7.4635,133.99,133.94,7.4659]
[1719016064565,7.4635,133.99,133.95,7.4654]
[1719016065670,7.4635,133.99,133.94,7.4658]
[1719016068070,7.4639,133.98,133.93,7.4663]
[1719016068277,7.4639,133.98,133.94,7.466]
[1719016068451,7.4633,133.99,133.94,7.466]
[1719016070371,7.4633,133.99,133.89,0.34]
[1719016070372,15.0787,134.02,133.93,41.046]
[1719016070562,22.5406,134.02,133.93,41.046]
[1719016070958,7.4622,134.01,133.93,41.046]
[1719016071157,7.4629,134.0,133.95,7.4652]
[1719016072054,7.4623,134.01,133.95,7.4652]
[1719016072375,7.4633,133.99,133.93,7.4662]
[1719016072854,7.4633,133.99,133.94,7.4659]
[1719016073670,7.4633,133.99,133.93,7.4663]
[1719016073852,7.4633,133.99,133.94,7.4659]
[1719016074375,7.4628,134.0,133.94,7.4659]
[1719016074552,7.4633,133.99,133.94,7.4659]
[1719016074752,7.4639,133.98,133.9,18.6694]
[1719016075164,7.4639,133.98,133.92,7.4666]
[1719016077861,0.17,133.98,133.89,0.17]
[1719016078153,7.4646,133.97,133.92,7.4669]
[1719016078662,7.465,133.96,133.9,7.4677]
[1719016078862,7.465,133.96,133.91,7.4675]
[1719016080074,7.465,133.96,133.9,7.468]
[1719016080373,7.4649,133.96,133.91,7.4672]
[1719016081162,7.4656,133.95,133.87,15.2292]
[1719016081472,16.0879,133.96,133.89,7.4684]
[1719016081669,16.0879,133.96,133.86,50.61]
[1719016081875,6.394,133.97,133.93,7.4662]
[1719016082078,6.394,133.97,133.94,7.4658]
[1719016082281,16.0879,133.99,133.96,7.4648]
[1719016082462,16.0879,133.99,133.95,7.4652]
[1719016083084,23.5512,133.99,133.94,7.4658]
[1719016083874,16.0879,133.99,133.94,7.4658]
[1719016084056,16.0879,133.99,133.95,7.4654]
[1719016084456,16.0879,133.99,133.94,7.4657]
[1719016084875,16.0879,133.99,133.93,18.6663]
[1719016085076,7.4626,134.0,133.91,57.5113]
[1719016085280,6.0863,134.01,133.92,7.467]
[1719016085580,6.0863,134.01,133.89,22.45]
[1719016085771,6.0863,134.01,133.94,7.4657]
[1719016086174,7.4633,133.99,133.94,7.4657]
[1719016086474,13.5486,134.01,133.96,7.4645]
[1719016087063,13.5486,134.01,133.95,7.4652]
[1719016087257,7.4627,134.0,133.95,7.4652]
[1719016090687,7.4636,133.99,133.94,7.4658]
[1719016091484,6.0863,134.01,133.88,56.2435]
[1719016091665,7.465,133.96,133.91,7.4673]
[1719016091861,18.6583,133.99,133.88,33.7935]
[1719016092065,7.4657,133.95,133.88,15.1208]
[1719016092269,7.465,133.96,133.88,15.1208]
[1719016092480,7.465,133.96,133.91,7.4676]
[1719016093380,18.6568,134.0,133.88,37.5708]
[1719016093582,6.0863,134.01,133.89,20.34]
[1719016093887,7.4641,133.98,133.93,7.4664]
[1719016094391,7.4644,133.97,133.92,7.4669]
[1719016094587,7.4639,133.98,133.93,7.4665]
[1719016096071,7.4646,133.97,133.92,7.4668]
[1719016096591,7.4646,133.97,133.92,7.4667]
[1719016097492,7.4635,133.99,133.93,7.4665]
[1719016098090,7.4638,133.98,133.93,7.4665]
[1719016098476,7.4634,133.99,133.94,7.4659]
[1719016100270,6.2563,134.01,133.9,22.45]
[1719016100471,6.0863,134.01,133.97,7.464]
[1719016100673,6.2899,134.05,133.94,38.1746]
[1719016100987,13.7498,134.05,134.0,7.4625]
[1719016101181,13.7498,134.05,133.99,7.4629]
[1719016101402,7.4605,134.04,133.99,7.4629]
[1719016103074,7.4605,134.04,133.96,50.61]
[1719016103275,7.4601,134.05,133.96,50.61]
[1719016103577,15.5628,134.08,133.99,22.45]
[1719016103791,15.5628,134.08,134.0,0.34]
[1719016104197,34.2088,134.08,134.0,7.4625]
[1719016104898,15.5628,134.08,133.99,50.61]
[1719016105101,7.4597,134.06,134.0,7.4622]
[1719016105400,7.4599,134.05,134.0,7.4622]
[1719016106212,15.5628,134.08,133.93,6.3065]
[1719016106495,7.462,134.02,133.97,7.4643]
[1719016106699,7.462,134.02,133.94,43.8846]
[1719016106700,7.4621,134.01,133.96,7.4648]
[1719016106875,7.4621,134.01,133.94,62.5494]
[1719016107080,18.6581,133.99,133.91,16.0388]
[1719016107279,7.4646,133.97,133.92,7.4668]
[1719016108185,7.4638,133.98,133.89,24.9536]
[1719016108584,15.6957,134.02,133.91,28.16]
[1719016108789,15.6957,134.02,133.92,22.79]
[1719016109082,15.6957,134.02,133.95,7.4649]
[1719016109286,15.6957,134.02,133.94,7.4658]
[1719016109287,0.17,134.01,133.94,7.4658]
[1719016109489,0.17,134.01,133.93,7.4664]
[1719016109796,0.34,134.01,133.9,22.45]
[1719016109998,15.6957,134.02,133.92,22.45]
[1719016110177,15.6957,134.02,133.93,0.34]
[1719016110382,23.1572,134.02,133.97,7.464]
[1719016110680,15.6957,134.02,133.98,7.4636]
[1719016110891,6.3931,134.03,133.95,22.45]
[1719016111093,6.3931,134.03,133.96,0.17]
[1719016111510,6.3931,134.03,133.99,7.463]
[1719016111810,6.3931,134.03,133.98,18.6591]
[1719016111979,6.3931,134.03,134.01,7.4618]
[1719016112484,6.3931,134.03,134.0,7.4624]
[1719016113398,7.4599,134.05,134.0,7.4624]
[1719016114002,7.4599,134.05,133.99,7.4629]
[1719016114401,7.4599,134.05,133.96,41.452]
[1719016114402,7.4599,134.05,134.0,7.4624]
[1719016114799,24.57685037,134.1,133.99,28.7328]
[1719016114999,22.0888,134.11,134.0,0.34]
[1719016115201,7.4579,134.09,134.03,7.4608]
[1719016115726,22.0888,134.11,134.03,7.4608]
[1719016115890,7.4582,134.08,134.03,7.4608]
[1719016116213,7.4579,134.09,134.04,7.4603]
[1719016116405,7.4571,134.1,134.05,7.4598]
[1719016117798,7.4572,134.1,134.05,7.4598]
[1719016118314,29.5454,134.11,134.06,7.459]
[1719016118623,22.0888,134.11,134.06,7.459]
[1719016118942,7.4575,134.1,134.04,7.46]
[1719016119423,22.0888,134.11,134.06,7.4591]
[1719016119596,22.0888,134.11,134.02,38.4888]
[1719016119797,29.5456,134.11,134.06,7.4591]
[1719016120195,22.0888,134.11,134.06,7.4592]
[1719016120389,29.5453,134.11,134.06,7.4592]
[1719016120614,22.0888,134.11,134.06,7.4592]
[1719016121225,22.0888,134.11,134.07,7.4586]
[1719016121393,7.4564,134.12,134.07,7.4586]
[1719016121598,7.4556,134.13,134.08,7.4581]
[1719016122316,7.456,134.12,134.07,7.4585]
[1719016122489,7.4556,134.13,134.08,7.458]
[1719016123811,39.9203,134.15,134.04,41.0999]
[1719016124030,18.639,134.13,134.02,38.4888]
[1719016124320,7.458,134.09,134.04,7.4604]
[1719016125520,18.8112,134.12,134.02,16.0388]
[1719016125899,7.458,134.09,134.04,7.4604]
[1719016126818,7.4573,134.1,134.05,7.4598]
[1719016127695,7.4573,134.1,134.04,7.4601]
[1719016127897,7.4573,134.1,134.06,45.0]
[1719016128213,0.17,134.12,134.05,45.0]
[1719016128518,7.4578,134.09,134.05,45.0]
[1719016129519,7.4573,134.1,134.05,52.4597]
[1719016130096,7.4578,134.09,134.05,45.0]
[1719016130313,7.4586,134.08,134.05,45.0]
[1719016130611,7.4579,134.09,134.04,52.4604]
[1719016131446,7.4573,134.1,134.05,7.4598]
[1719016131621,7.4573,134.1,134.06,45.0]
[1719016134856,18.8113,134.12,134.02,16.0388]
[1719016135038,7.4582,134.08,134.03,7.4607]
[1719016135243,7.4582,134.08,134.04,45.0]
[1719016135412,7.4589,134.07,134.04,45.0]
[1719016135617,7.4589,134.07,134.03,45.0]
[1719016136225,7.4585,134.08,134.03,52.4609]
[1719016136956,25.0374,134.09,133.99,18.6578]
[1719016137158,7.4597,134.06,134.01,7.4618]
[1719016137325,7.4603,134.05,133.96,24.8294]
[1719016137660,7.4607,134.04,133.99,7.4629]
[1719016137836,7.4601,134.05,134.0,7.4626]
[1719016138628,7.4601,134.05,134.01,45.0]
[1719016139154,7.4593,134.06,134.01,52.4618]
[1719016140230,0.34,134.08,134.01,45.0]
[1719016140752,7.4608,134.04,134.01,45.0]
[1719016140922,7.4608,134.04,134.0,45.0]
[1719016141416,18.6497,134.06,133.96,6.1684]
[1719016141620,7.461,134.03,133.98,7.4635]
[1719016141851,7.461,134.03,133.95,18.6625]
[1719016141852,7.4617,134.02,133.97,7.464]
[1719016142960,7.4622,134.01,133.96,7.4648]
[1719016143143,7.4622,134.01,133.93,18.6663]
[1719016143144,7.4622,134.01,133.95,7.4652]
[1719016143321,6.1847,133.99,133.85,15.7077]
[1719016143525,6.1847,133.99,133.92,7.4666]
[1719016143840,7.804,133.98,133.92,7.4666]
[1719016144037,7.464,133.98,133.93,7.4665]
[1719016144340,6.1847,133.99,133.94,7.4655]
[1719016145050,13.648,133.99,133.94,7.4655]
[1719016145350,13.648,133.99,133.95,45.0]
[1719016146251,7.4638,133.98,133.94,45.0]
[1719016146432,7.4643,133.97,133.92,7.4668]
[1719016147531,13.6484,133.99,133.93,7.4661]
[1719016147852,6.1847,133.99,133.94,52.4657]
[1719016148019,13.6479,133.99,133.94,52.4657]
[1719016148222,13.6479,133.99,133.94,45.0]
[1719016148756,13.6479,133.99,133.94,52.466]
[1719016151837,0.17,133.98,133.9,18.6693]
[1719016152152,0.34,133.98,133.91,45.0]
[1719016152461,7.4641,133.98,133.91,45.0]
[1719016152635,7.4641,133.98,133.93,7.4665]
[1719016153053,7.4641,133.98,133.92,7.4669]
[1719016153266,7.4641,133.98,133.93,45.0]
[1719016153451,6.1847,133.99,133.93,45.0]
[1719016153651,7.4642,133.98,133.93,52.4665]
[1719016153891,6.1847,133.99,133.93,45.0]
[1719016154054,13.648,133.99,133.94,7.4658]
[1719016154371,13.6479,133.99,133.94,7.4656]
[1719016154753,6.1847,133.99,133.89,18.6718]
[1719016154957,7.4646,133.97,133.92,7.4668]
[1719016155161,6.1847,133.99,133.89,18.6718]
[1719016155359,7.4642,133.98,133.93,7.4665]
[1719016156774,6.1847,133.99,133.95,7.465]
[1719016156959,23.928,134.0,133.95,7.4652]
[1719016158048,16.4653,134.0,133.96,7.4648]
[1719016158958,23.928,134.0,133.95,7.4652]
[1719016159163,22.404,134.05,133.94,41.2838]
[1719016159368,22.404,134.05,133.98,7.4634]
[1719016159369,7.4613,134.03,133.98,7.4634]
[1719016159555,7.4613,134.03,133.99,7.4632]
[1719016159881,7.461,134.03,133.98,7.4635]
[1719016160050,22.4442,134.09,133.97,22.45]
[1719016160383,7.459,134.07,134.02,7.4613]
[1719016163280,7.459,134.07,134.01,7.4618]
[1719016164085,7.459,134.07,134.02,7.4614]
[1719016164959,22.4442,134.09,133.99,37.9392]
[1719016165158,22.4442,134.09,134.0,22.79]
[1719016165376,29.9018,134.09,134.04,7.4601]
[1719016166359,7.4582,134.08,134.03,7.4608]
[1719016166887,7.4582,134.08,134.02,7.4613]
[1719016167058,7.4588,134.07,134.02,7.4613]
[1719016167258,7.4589,134.07,134.02,7.4615]
[1719016168190,7.4594,134.06,134.01,7.4619]
[1719016168487,41.0897,134.09,133.99,15.4892]
[1719016168784,7.4606,134.04,133.99,7.4629]
[1719016169285,7.46,134.05,134.0,7.4626]
[1719016170366,18.6481,134.07,133.96,43.5238]
[1719016170561,7.461,134.03,133.98,7.4635]
[1719016171880,30.0979,134.04,133.99,7.4631]
[1719016174091,22.6373,134.04,134.0,7.4623]
[1719016174870,30.0977,134.04,134.0,7.4623]
[1719016175293,30.0977,134.04,133.99,7.4629]
[1719016177380,30.0977,134.04,133.97,18.6603]
[1719016177381,7.4597,134.06,134.01,7.4619]
[1719016177673,13.9631,134.07,134.02,7.4615]
[1719016178709,6.5041,134.07,133.98,41.1084]
[1719016179030,6.5041,134.07,133.99,0.17]
[1719016179176,7.46,134.05,134.0,7.4623]
[1719016179378,7.46,134.05,134.01,7.4621]
[1719016179577,7.4595,134.06,134.01,7.4621]
[1719016179781,13.963,134.07,134.02,7.4614]
[1719016181294,7.4599,134.05,133.99,0.17]
[1719016181514,7.4595,134.06,133.99,0.34]
[1719016181704,7.4595,134.06,134.01,7.4618]
[1719016183409,6.5041,134.07,133.98,18.6584]
[1719016183709,7.4612,134.03,133.98,7.4636]
[1719016184598,7.4606,134.04,133.99,7.463]
[1719016185887,7.4606,134.04,134.0,7.4626]
[1719016186096,7.4601,134.05,134.0,7.4626]
[1719016187003,7.4596,134.06,133.98,41.1093]
[1719016187313,6.5041,134.07,134.03,7.4606]
[1719016187496,13.9629,134.07,134.03,7.4606]
[1719016187692,13.9629,134.07,134.02,7.4613]
[1719016189989,13.9629,134.07,134.03,7.4609]
[1719016193109,13.9629,134.07,134.02,7.4612]
[1719016193480,16.1332,134.08,134.01,50.55]
[1719016193688,16.1332,134.08,134.05,7.4598]
[1719016193883,16.1332,134.08,134.02,0.34]
[1719016193884,16.1332,134.08,134.03,7.4606]
[1719016194194,23.5914,134.08,134.03,7.4608]
[1719016194797,23.5914,134.08,134.04,7.4604]
[1719016194993,16.1332,134.08,134.04,7.4604]
[1719016196708,16.1332,134.08,134.05,7.4598]
[1719016197613,16.1332,134.08,134.04,7.4602]
[1719016198317,16.1332,134.08,134.05,7.4598]
[1719016198496,13.9318,134.1,134.05,7.4598]
[1719016199817,7.4579,134.09,134.04,7.4603]
[1719016200022,6.4745,134.1,134.02,0.17]
[1719016200203,7.46,134.05,134.0,29.9123]
[1719016200405,6.4745,134.1,134.0,22.45]
[1719016200598,7.4603,134.05,134.0,29.9122]
[1719016200998,7.4596,134.06,134.01,7.462]
[1719016201619,15.0451,134.07,134.0,7.4625]
[1719016201804,7.4601,134.05,134.0,7.4625]
[1719016202316,6.3831,134.05,133.96,16.4149]
[1719016202525,7.4618,134.02,133.97,7.464]
[1719016202709,7.4612,134.03,133.96,38.8649]
[1719016202909,6.3831,134.05,134.0,7.4626]
[1719016203112,13.8433,134.05,134.0,7.4626]
[1719016203608,6.3831,134.05,134.01,7.462]
[1719016204102,22.5041,134.07,134.02,7.4615]
[1719016204805,7.4601,134.05,134.0,7.4623]
[1719016205006,7.4596,134.06,134.01,7.4621]
[1719016206148,16.2924,134.1,134.02,22.62]
[1719016206439,23.7478,134.14,134.08,7.4577]
[1719016206622,23.7473,134.14,134.09,7.4571]
[1719016206821,23.7473,134.14,134.08,7.458]
[1719016207011,23.7473,134.14,134.05,41.0983]
[1719016207218,23.7473,134.14,134.09,7.4574]
[1719016208020,16.2924,134.14,134.06,0.34]
[1719016208444,7.456,134.12,134.07,7.4584]
[1719016209238,7.4572,134.1,134.05,7.4596]
[1719016209814,16.2924,134.14,134.04,18.6509]
[1719016210034,16.2924,134.14,134.03,15.5343]
[1719016210035,20.0,134.13,134.03,43.6343]
[1719016210335,16.2924,134.14,134.03,43.6343]
[1719016210336,16.2924,134.14,134.04,22.45]
[1719016210720,16.2924,134.14,134.05,0.34]
[1719016210915,23.7476,134.14,134.09,7.4573]
[1719016211933,7.457,134.11,134.06,7.4589]
[1719016212343,16.2924,134.14,134.03,62.286]
[1719016212344,7.4562,134.12,134.07,7.4587]
[1719016213746,7.4556,134.13,134.08,7.4581]
[1719016213941,20.0,134.12,134.08,7.4581]
[1719016214142,27.456,134.12,134.07,7.4585]
[1719016214328,7.4579,134.09,134.04,7.4601]
[1719016214537,27.4561,134.12,134.07,7.4586]
[1719016217744,20.0,134.12,134.08,7.4582]
[1719016217944,27.4555,134.13,134.05,41.0987]
[1719016218123,27.4555,134.13,134.08,7.4579]
[1719016218546,20.0,134.13,134.06,0.34]
[1719016218751,7.4566,134.11,134.06,7.4592]
[1719016218932,7.4572,134.1,134.05,7.4596]
[1719016219445,7.4572,134.1,134.05,7.4595]
[1719016219839,7.4568,134.11,134.06,7.4592]
[1719016220842,27.4558,134.13,134.07,7.4587]
[1719016221046,20.0,134.13,134.09,7.4576]
[1719016222454,20.0,134.13,134.03,50.55]
[1719016222759,27.4557,134.13,134.08,7.4581]
[1719016224262,7.4572,134.1,134.06,7.4593]
[1719016224754,7.4567,134.11,134.07,7.4587]
[1719016224953,7.4567,134.11,134.06,7.4591]
[1719016226155,18.6411,134.12,134.01,41.1049]
[1719016226339,7.458,134.09,134.04,7.46]
[1719016227255,15.6598,134.08,134.05,7.4598]
[1719016227456,15.6598,134.08,134.04,7.4601]
[1719016229049,15.6598,134.08,134.05,7.4598]
[1719016229860,15.6598,134.08,133.99,18.6579]
[1719016230057,15.6598,134.08,134.04,7.46]
[1719016230251,15.6598,134.08,134.05,7.4597]
[1719016230448,15.6598,134.08,134.0,37.311]
[1719016230763,21.7046,134.13,134.05,41.0986]
[1719016230980,21.7046,134.13,134.05,22.45]
[1719016231273,21.7046,134.19,134.15,7.4542]
[1719016231451,20.0,134.18,134.15,7.4542]
[1719016231764,21.7046,134.19,134.17,7.4532]
[1719016231982,21.7046,134.19,134.13,18.6384]
[1719016231983,21.7046,134.23,134.2,7.4512]
[1719016232260,21.7046,134.23,134.21,7.4509]
[1719016232261,6.0448,134.23,134.21,7.4509]
[1719016232636,6.0448,134.23,134.19,7.4515]
[1719016233564,6.0448,134.23,134.18,7.4525]
[1719016234064,6.0448,134.23,134.12,65.3776]
[1719016234065,6.0448,134.23,134.08,21.7361]
[1719016234242,7.453,134.18,134.1,46.742]
[1719016234446,7.4522,134.19,134.1,46.742]
[1719016234650,7.4517,134.2,134.14,7.4545]
[1719016235845,20.0,134.19,134.1,28.1]
[1719016236044,35.8121,134.19,134.08,72.2861]
[1719016236244,35.8121,134.19,134.11,7.4561]
[1719016236245,7.4533,134.17,134.11,7.4561]
[1719016236560,35.8121,134.19,134.09,41.0941]
[1719016237150,35.8121,134.19,134.1,0.17]
[1719016237369,43.2644,134.19,134.14,7.4548]
[1719016237558,15.8121,134.19,134.11,69.1912]
[1719016237748,7.4516,134.2,134.15,7.4539]
[1719016237952,7.4512,134.21,134.15,7.4539]
[1719016238551,7.4515,134.2,134.15,7.4539]
[1719016239443,21.8569,134.23,134.14,7.4547]
[1719016239444,7.4521,134.19,134.14,7.4547]
[1719016239647,7.4533,134.17,134.12,0.17]
[1719016239871,7.4539,134.16,134.08,68.4807]
[1719016240083,7.4564,134.12,134.05,6.1272]
[1719016240371,7.4552,134.14,134.08,7.4577]
[1719016240572,24.7557,134.16,134.05,52.8767]
[1719016240776,20.0,134.15,134.11,7.4562]
[1719016241678,20.0,134.15,134.07,18.6469]
[1719016241971,27.4545,134.15,134.09,7.4573]
[1719016242145,7.4549,134.14,134.09,7.4573]
[1719016245553,27.4545,134.15,134.1,7.4571]
[1719016246479,20.0,134.15,134.08,22.45]
[1719016246783,22.2808,134.16,134.1,18.6425]
[1719016246983,22.2808,134.16,134.14,7.4548]
[1719016247562,7.4526,134.18,134.09,60.0766]
[1719016247762,20.0,134.17,134.14,7.4548]
[1719016248169,7.4523,134.19,134.14,7.4548]
[1719016248483,20.0,134.18,134.15,7.454]
[1719016248858,22.3647,134.2,134.16,7.4536]
[1719016249058,22.3647,134.2,134.13,18.6375]
[1719016249265,29.8162,134.2,134.16,7.4534]
[1719016249480,29.8162,134.2,134.15,7.4541]
[1719016250368,7.4506,134.22,134.17,7.4528]
[1719016250567,20.0,134.21,134.18,7.4526]
[1719016250875,29.8146,134.23,134.18,7.4526]
[1719016251183,27.4505,134.22,134.17,7.4529]
[1719016252786,7.4514,134.21,134.16,7.4535]
[1719016253786,20.0,134.22,134.15,7.4541]
[1719016253787,27.4517,134.2,134.15,7.4541]
[1719016254365,27.4517,134.2,134.16,7.4537]
[1719016254568,20.0,134.2,134.16,7.4537]
[1719016254774,7.4511,134.21,134.16,7.4533]
[1719016255081,7.4506,134.22,134.17,7.4531]
[1719016255271,20.0,134.21,134.17,7.4531]
[1719016256182,27.451,134.21,134.17,7.4531]
[1719016256358,20.0,134.21,134.13,18.6383]
[1719016256556,22.3647,134.23,134.12,0.34]
[1719016256557,7.4524,134.19,134.14,7.4546]
[1719016257383,7.4534,134.17,134.12,7.4557]